Cogmind - Beta 9.6 @@@ ROGUE MODE // 2020.08.27 @ 10:24:49 Player: dark Result: Destroyed by S-10 Pest with Light Assault Rifle Performance ------------- Evolutions (1) 500 Regions Visited (3) 600 Robots Destroyed (28) 140 Value Destroyed (602) 602 Prototype IDs (0) 0 Alien Tech Used (0) 0 Bonus (25) 25 TOTAL SCORE: 1867 Bonus ------- High Alert Combat Kills 25 Cogmind --------- Core Integrity 0/400 Matter 184/300 Energy 65/100 System Corruption 0% Temperature Cool (3) Movement Walking (120) Location -9/Mines Parts ------- > --- POWER (1) -------- (None) > --- PROPULSION (3) --- Aluminum Leg Carbon-fiber Leg Carbon-fiber Leg > --- UTILITY (3) ------ Small Storage Unit Small Storage Unit > --- WEAPON (2) ------- Heavy Assault Rifle > --- INVENTORY (8) ---- Ion Engine Improved Ion Engine Flight Unit Heat Sink Improved Heat Sink Improved Heat Sink Light Armor Plating EM Pulse Gun Peak State ------------ > --- POWER ------------ Light Nuclear Core > --- PROPULSION ------- Flight Unit Flight Unit Flight Unit > --- UTILITY ---------- Small Storage Unit Small Storage Unit > --- WEAPON ----------- Heavy EM Pulse Gun Heavy Assault Rifle > --- INVENTORY -------- Ion Engine Heat Sink Light Armor Plating EM Pulse Gun Particle Gun [Rating: 12] Favorites ----------- Power Light Ion Engine Engine Light Ion Engine Power Core Light Nuclear Core Propulsion Flight Unit Treads Light Treads Leg Carbon-fiber Leg Wheel Wheel Hover Unit Hover Unit Flight Unit Flight Unit Utility Small Storage Unit Storage Small Storage Unit Protection Light Armor Plating Weapon Assault Rifle Energy Gun Heavy EM Pulse Gun Ballistic Gun Assault Rifle Launcher Grenade Launcher Build | -11 -10 -9 -9 ------- Run | Scr Mat Mat Min Slots Evolved 2 | . . 2 . Power . | . . . . Propulsion 1 | . . 1 . Utility 1 | . . 1 . Weapon . | . . . . Parts Attached 42 | 8 14 15 5 Power 4 | 1 2 1 . Engine 3 | 1 2 . . Core 1 | . . 1 . Reactor . | . . . . Propulsion 19 | 4 5 7 3 Treads 4 | 1 2 1 . Leg 3 | . . . 3 Wheel 3 | 3 . . . Hover 4 | . 3 1 . Flight 5 | . . 5 . Utility 3 | 1 1 1 . Device . | . . . . Storage 2 | 1 1 . . Processor . | . . . . Hackware . | . . . . Protection 1 | . . 1 . Artifact . | . . . . Weapon 16 | 2 6 6 2 Energy Gun 4 | . . 3 1 Energy Cannon . | . . . . Ballistic Gun 9 | 2 4 2 1 Ballistic Cannon . | . . . . Launcher 3 | . 2 1 . Special Weapon . | . . . . Impact Weapon . | . . . . Slashing Weapon . | . . . . Piercing Weapon . | . . . . Special Melee Weapon . | . . . . Unidentified Prototypes . | . . . . Parts Lost 18 | . 2 14 2 Power 3 | . 1 2 . Propulsion 8 | . 1 6 1 Utility 1 | . . 1 . Weapon 6 | . . 5 1 Highest Loss Streak 5 | . 1 5 2 Average Slot Usage (%) 75 | . 93 66 55 Engine 5 | . 12 . . Core 1 | . . 3 . Treads 5 | . 9 3 . Leg 2 | . . . 12 Wheel 4 | . 10 . . Hover 5 | . 7 7 . Flight 5 | . . 8 11 Storage 22 | . 24 22 22 Protection 1 | . . 2 . Energy Gun 2 | . . 5 1 Ballistic Gun 17 | . 27 11 7 Naked Turns . | . . . . Heaviest Build 19 | 10 17 19 14 Greatest Support 40 | 26 40 20 40 Greatest Overweight (x) 4 | . 4 4 2 Average Overweight (x) . | . . . . Largest Inventory Capacity 8 | 6 8 8 8 Average Capacity 7 | 5 7 8 8 Most Carried 8 | 6 8 8 8 Average Carried 6 | 4 7 6 6 Final Capacity 8 | 6 8 8 8 Final Carried 8 | 5 7 7 8 Class Distribution -------------------- 76% | Mutant 23% | Scavenger-Mutant Dominant Class ---------------- Mutant | -10/Materials Mutant | -9/Materials Scavenger-Mutant | -9/Mines Resources | -11 -10 -9 -9 ----------- Run | Scr Mat Mat Min Matter Collected 737 | 131 214 287 105 Remotely . | . . . . Salvage Created 725 | . 212 460 53 Parts 61 | . 13 46 2 Haulers Intercepted . | . . . . Recyclers Shooed . | . . . . Parts Field Recycled . | . . . . Retrieved Matter . | . . . . Parts Self-Destructed . | . . . . Prevented . | . . . . Kills | -11 -10 -9 -9 ------- Run | Scr Mat Mat Min Combat Hostiles Destroyed 24 | . 7 16 1 Guns 14 | . 4 9 1 AOE 10 | . 3 7 . Classes Destroyed 5 | . 3 2 . Recycler 1 | . . 1 . Watcher 3 | . 1 2 . Swarmer 14 | . 2 12 . Grunt 8 | . 5 2 1 Sentry 2 | . . 2 . Best Kill Streak 7 | . 4 7 1 Combat Bots Only 7 | . 4 7 1 Max Kills in Single Turn 3 | . 2 3 1 Gunslinging . | . . . . Exploded 3 | . 2 3 . Melee . | . . . . Uniques/NPCs Destroyed . | . . . . Combat | -11 -10 -9 -9 -------- Run | Scr Mat Mat Min Damage Taken 2061 | . 516 1304 241 Core 554 | . 153 334 67 Absorbed by Shields . | . . . . Core Remaining (%) 69 | 100 38 . . Volleys Fired 72 | . 25 37 10 Largest 2 | . 2 2 2 Hottest 88 | . 50 88 88 Shots Fired 118 | . 48 53 17 Gun 106 | . 43 46 17 Cannon . | . . . . Launcher 12 | . 5 7 . Special . | . . . . Kinetic 77 | . 43 24 10 Thermal 9 | . . 2 7 Explosive 12 | . 5 7 . Electromagnetic 20 | . . 20 . Robot Hit Streak 12 | . 7 12 3 Robot Miss Streak 4 | . 2 2 4 Penetration Max . | . . . . Secondary Targets 2 | . . 2 . Max Gunslinging Chain 1 | . . 1 . Shots Hit Robots 78 | . 33 36 9 Core Hits 41 | . 16 22 3 Critical Hits 2 | . 1 . 1 Critical Kills 1 | . 1 . . Critical Parts Destroyed 1 | . . . 1 Melee Attacks . | . . . . Impact . | . . . . Slashing . | . . . . Piercing . | . . . . Sneak Attacks . | . . . . Combat Hostiles . | . . . . Follow-up Attacks . | . . . . Damage Inflicted 1728 | . 583 981 164 Guns 990 | . 287 539 164 Cannons . | . . . . Explosions 738 | . 296 442 . Melee . | . . . . Ramming . | . . . . Kinetic 622 | . 287 250 85 Thermal 111 | . . 32 79 Explosive 738 | . 296 442 . Electromagnetic 257 | . . 257 . Impact . | . . . . Slashing . | . . . . Piercing . | . . . . Highest Corruption . | . . . . Average Corruption . | . . . . Corruption Purged . | . . . . Overload Shots . | . . . . Overflow Damage 48 | . 12 36 . Projectiles . | . . . . Explosions 48 | . 12 36 . Melee . | . . . . Knockbacks . | . . . . Impact . | . . . . Kinetic . | . . . . Secondary . | . . . . Self-Inflicted Damage 150 | . 44 106 . Shots 6 | . 2 4 . Rammed . | . . . . Targets Rammed . | . . . . Kicked . | . . . . Crushed . | . . . . Highest Temperature 94 | . 7 31 94 Average Temperature 20 | . 2 12 43 Received Heat Transfer 537 | . 150 291 96 Siege Activations . | . . . . Robots Corrupted . | . . . . Combat Hostiles . | . . . . Parts Fried . | . . . . Impact Corruptions . | . . . . Robots Melted . | . . . . Combat Hostiles . | . . . . Parts Melted . | . . . . Heat Transferred 259 | . . 74 185 Parts Sabotaged . | . . . . Parts Stolen . | . . . . Parts Stripped . | . . . . Power Chain Reactions . | . . . . Missiles Intercepted . | . . . . Alert | -11 -10 -9 -9 ------- Run | Scr Mat Mat Min Peak Influence 464 | . 202 464 190 Average Influence 186 | . 77 322 183 Maximum Alert Level 2 | . 1 2 . Low Security (%) 61 | 100 94 8 100 Level 1 32 | . 5 76 . Level 2 6 | . . 15 . Level 3 . | . . . . Level 4 . | . . . . Level 5 . | . . . . High Security . | . . . . Max Security . | . . . . Squads Dispatched 3 | . 1 2 . Investigation 1 | . . 1 . Extermination . | . . . . Reinforcement 2 | . 1 1 . Assault . | . . . . Garrison . | . . . . Intercept . | . . . . Construction Impeded . | . . . . Haulers Reinforced . | . . . . Stealth | -11 -10 -9 -9 --------- Run | Scr Mat Mat Min Distress Signals 2 | . 1 1 . Communications Jammed . | . . . . Distress Signals . | . . . . Times Spotted 48 | . 14 27 7 Peak Tracking Total 8 | . 6 8 5 Tactical Retreats 6 | . 2 3 1 Traps | -11 -10 -9 -9 ------- Run | Scr Mat Mat Min Traps Triggered 1 | . . 1 . Indirectly . | . . . . Trap Hack Attempts . | . . . . Triggered . | . . . . Disarmed . | . . . . Reprogrammed . | . . . . Reused . | . . . . Traps Extracted . | . . . . Installed . | . . . . Triggered . | . . . . Machines | -11 -10 -9 -9 ---------- Run | Scr Mat Mat Min Machines Disabled 2 | . 2 . . Max in Single Turn 2 | . 2 . . Machines Sabotaged . | . . . . Garrisons Compromised . | . . . . Overloaded Fab Kills . | . . . . Fab Network Shutdowns . | . . . . Hacking | -11 -10 -9 -9 --------- Run | Scr Mat Mat Min Machines Accessed 2 | . 2 . . Terminals 2 | . 2 . . Fabricators . | . . . . Repair Stations . | . . . . Recycling Units . | . . . . Scanalyzers . | . . . . Garrison Access . | . . . . Total Hacks 8 | . 8 . . Successful 4 | . 4 . . Failed 4 | . 4 . . Catastrophic . | . . . . Database Lockouts . | . . . . Manual 8 | . 8 . . Terminals 8 | . 8 . . Fabricators . | . . . . Repair Stations . | . . . . Recycling Units . | . . . . Scanalyzers . | . . . . Garrison Access . | . . . . Terminal Hacks . | . . . . Fabricator Hacks . | . . . . Repair Station Hacks . | . . . . Recycling Unit Hacks . | . . . . Scanalyzer . | . . . . Garrison Access Hacks . | . . . . Unauthorized Hacks 4 | . 4 . . Terminals 4 | . 4 . . Track 1 | . 1 . . Botnet 2 | . 2 . . Operators 1 | . 1 . . Fabricators . | . . . . Repair Stations . | . . . . Recycling Units . | . . . . Scanalyzers . | . . . . Garrison Access . | . . . . Data Cores Recovered . | . . . . Used . | . . . . Hacking Detections 2 | . 2 . . Full Trace Events . | . . . . Feedback Events . | . . . . Feedback Blocked . | . . . . Robot Schematics Acquired . | . . . . Robots Built . | . . . . Matter . | . . . . Time . | . . . . Total Robot Build Rating . | . . . . Part Schematics Acquired . | . . . . Parts Built . | . . . . Matter . | . . . . Time . | . . . . Total Part Build Rating . | . . . . Parts Repaired . | . . . . Time . | . . . . Parts Recycled . | . . . . Recycled Matter . | . . . . Retrieved Matter . | . . . . Retrieved Components . | . . . . Parts Scanalyzed . | . . . . Part Schematics Acquired . | . . . . Parts Damaged . | . . . . Bothacking | -11 -10 -9 -9 ------------ Run | Scr Mat Mat Min Used RIF Installer . | . . . . Robots Hacked . | . . . . Non-combat . | . . . . Combat . | . . . . Robot Hacks Applied . | . . . . Relay Couplers Released . | . . . . Robots Rewired . | . . . . Allies Hacked . | . . . . Hacks Repelled . | . . . . Allies | -11 -10 -9 -9 -------- Run | Scr Mat Mat Min Total Allies . | . . . . Largest Group . | . . . . Highest-Rated Group . | . . . . Highest-Rated Ally . | . . . . Total Orders . | . . . . Ally Attacks . | . . . . Total Damage . | . . . . Kills . | . . . . Allies Corrupted . | . . . . Allies Melted . | . . . . Intel | -11 -10 -9 -9 ------- Run | Scr Mat Mat Min Robot Analysis Total . | . . . . Derelict Logs Recovered 1 | . . . 1 Drone Launches . | . . . . Drone Recoveries . | . . . . Exploration | -11 -10 -9 -9 ------------- Run | Scr Mat Mat Min Turns Passed 965 | 60 367 382 156 Spaces Moved 613 | 52 202 221 138 Core 45 | 15 1 29 . Treads 121 | 2 73 46 . Legs 47 | . . . 47 Wheels 122 | 35 87 . . Hover 141 | . 41 100 . Flight 137 | . . 46 91 Fastest Speed 34 | 50 90 34 37 Average Speed 102 | 80 122 107 70 Slowest Speed 250 | 160 250 250 200 Overloaded Moves . | . . . . Propulsion Burnouts . | . . . . Robots Hopped 4 | . . 2 2 Cave-ins Triggered . | . . . . Exploration Rate (%) 22 | 3 35 18 33 Regions Visited 3 Branch Regions 1 Pre-discovered Areas 1 | . . . 1 Known Exits Taken . | . . . . Unknown Exits Taken 3 | 1 1 1 . Scrap Searched . | . . . . Spaces Dug . | . . . . Terrain Destroyed 80 | . 21 59 . Melee . | . . . . Projectile . | . . . . AOE 80 | . 21 59 . Actions | -11 -10 -9 -9 --------- Run | Scr Mat Mat Min Total 832 | 69 277 308 178 Wait 62 | . 15 25 22 Move 603 | 51 201 217 134 Hop 3 | . . 1 2 Pick Up 34 | 8 10 11 5 Fast Attach 10 | 4 6 . . Attach 23 | 3 3 13 4 Detach 2 | . . 2 . Swap 9 | 1 5 2 1 Drop 14 | 2 12 . . Fire 72 | . 25 37 10 Melee . | . . . . Ram . | . . . . Kick . | . . . . Crush . | . . . . Escape Stasis . | . . . . Rewire . | . . . . Trap . | . . . . Miscellaneous . | . . . . Route ------- -11/Scrapyard -10/Materials -9/Materials -9/Mines (discovered 1 exit: [*Mat]) History --------- Turn | Location | Event 12 | -11/Scrapyard | Discovered new exit (range 16) 61 | -11/Scrapyard | Entered Materials 219 | -10/Materials | Discovered new exit (range 13) 308 | -10/Materials | Build established: Mutant 396 | -10/Materials | Core integrity fell below 50% 428 | -10/Materials | Entered another Materials area 428 | -9/Materials | Evolved 2 slots: Propulsion x1, Utility x1 498 | -9/Materials | Destroyed 7 combat bots 514 | -9/Materials | Lost 3 parts (1p1n1w) 516 | -9/Materials | Discovered new exit (range 15) 581 | -9/Materials | Core integrity fell below 50% 630 | -9/Materials | Lost 4 parts (1u3w) 785 | -9/Materials | Core integrity fell below 20% 810 | -9/Materials | Entered Mines 818 | -9/Mines | Lost 5 parts (1p3n1w) 829 | -9/Mines | Met a Derelict bent on vengeance 845 | -9/Mines | Discovered new exit (range 12) 847 | -9/Mines | Learned location of Zion (-7) 966 | -9/Mines | Destroyed by S-10 Pest with Light Assault Rifle Last Messages --------------- Acquired derelict log, extracted data. World map updated: -7/Zion. K-01 Serf collects debris. RD-SJY(g) destroyed. K-01 Serf collects debris. Flight Unit destroyed. K-01 Serf collects debris. K-01 Serf suffers critical hit. Destroyed Lgt. Ion Engine. Particle Gun destroyed. G-47 Trooper destroyed. Acquired Carbon-fiber Leg. Acquired Imp. Heat Sink. Acquired Carbon-fiber Leg. Acquired Imp. Heat Sink. Acquired 53 matter. Acquired Aluminum Leg. K-01 Serf collects debris. Acquired 52 matter. K-01 Serf collects debris. Map ----- +----------------------------------------------------+ | | | | | | | | | | | | | | | | | | | | | | | | | | | | | | | ???????????????????????????????????? | | ???????????????????????????????????? | | ???????????????????????????????????? | | ??????????????????????#####??###???? | | ??????????####???????## ### ##??? | | ###??????## ######### ##?? | | ##?????# < #?? | | #?????# #?? | | ##????# ######### #?? | | ##???# ##???????#### ##?? | | ##?## #??????###?##@ ## ##??? | | ### ##????## ## #?###???? | | ##???# ##??????? | | ##??# #??????? | | #??## #??????? | | # #???#### ss #??????? | | # #??????## s ##?????? | | # ## #?####??# #?????? | | ## ### ### #?# s #?????? | | ?# #?###### ### ## #?????? | | ?# #???????###?# g ##?????? | | ?# #???????????## k #??????? | | ?# #????????????## #### #?????? | | ? #?????????????# ???# #?????? | | ? #????????????# ????# #?????? | | #####??????????? ?????# ##?????? | | ??????????????? ??????# #??????? | | ?????????????? ??????# #??????? | | ???????????? ???????## ??????? | | ???????????? ??????????# ??????? | | ???????????# ???????????? ?????? | | ???????????## ???????????? ?????? | | ?????????????#?????????????# #????? | | ????????????????????????????# #????? | | ????????????????????????????? ?????? | +----------------------------------------------------+ Best States ------------- Heat Dissipation 28 Energy Generation 14 Energy Capacity 250 Matter Stores 250 Matter Capacity 300 Sight Range 16 Terrain Scan Density 10 Armor Coverage 150 Evasion (%) 62 Recoil Reduction 2 Item Schematics ----------------- None Robot Schematics ------------------ None Fabricated ------------ Nothing Alien Tech Used ----------------- None Achievements -------------- None Challenges ------------ None Game ------ Seed MetafiberBombDrive Manual? 0 Play Time 00:18:01 Cumulative 71.1 hours Start 2020.08.27 @ 10:04:06 End 2020.08.27 @ 10:24:49 Sessions 1 Manual Loads 0 Difficulty Rogue Special Mode None Game No. 104 Rogue 70 Adventurer 11 Explorer 23 Win Type - Total 0 Types 0/0/0/0/0/0/0 Lore% 27 Gallery% 59 Achievement% 32 Wizard Run 0 Options --------- ASCII 0 Keyboard 0 Movement Mouse Keybinds 0 Fullscreen 0 Font 14/SmallcapsGlow Map View 84x54 Tactical HUD 0 Map Filters NONE Filters NONE Steam 1 RUN: 1e32d850-4cd9-42c7-b4a3-4e4ad54dc73e